bitfinex/quotes_BTCUSD_20241003
["timestamp","ask_amount","ask_price","bid_price","bid_amount"]
[1727976386429,0.164461,60805.0,60802.0,0.16318671]
[1727976386659,0.329734,60806.0,60802.0,0.16318671]
[1727976386660,0.165275,60806.0,60802.0,0.32765371]
[1727976386876,0.164465,60803.0,60802.0,0.16318671]
[1727976387092,0.496194,60806.0,60802.0,0.32765471]
[1727976387311,0.16446,60805.0,60802.0,0.16318671]
[1727976387731,0.164467,60803.0,60797.0,0.328962]
[1727976388013,0.328933,60803.0,60798.0,0.32766471]
[1727976388224,0.328933,60803.0,60795.0,0.164487]
[1727976388225,0.164468,60803.0,60795.0,0.164487]
[1727976388437,0.005817,60806.0,60796.0,0.16318671]
[1727976388683,0.164476,60800.0,60796.0,0.32766971]
[1727976388889,0.005817,60806.0,60796.0,0.16318671]
[1727976389116,0.32892,60805.0,60796.0,0.16318671]
[1727976389382,0.164481,60797.0,60796.0,0.16318671]
[1727976389613,0.328938,60802.0,60796.0,0.16318671]
[1727976389614,0.164479,60798.0,60796.0,0.16318671]
[1727976390050,0.164482,60797.0,60791.0,0.328991]
[1727976390267,0.328932,60803.0,60797.0,0.16448]
[1727976390523,0.004,60805.0,60798.0,0.16318671]
[1727976390736,0.2531922,60805.0,60803.0,0.164464]
[1727976390955,0.2531922,60805.0,60800.0,0.328946]
[1727976390956,0.000817,60806.0,60801.0,0.328937]
[1727976391188,0.164467,60803.0,60802.0,0.16318671]
[1727976391402,0.000817,60806.0,60796.0,0.001]
[1727976391403,0.164479,60798.0,60796.0,0.001]
[1727976391661,0.164479,60798.0,60797.0,0.41237891]
[1727976391883,0.2491922,60803.0,60788.0,0.329008]
[1727976392105,0.2491922,60803.0,60788.0,0.16318671]
[1727976392106,0.52261442,60798.0,60788.0,0.16318671]
[1727976392340,0.52261442,60798.0,60787.0,0.2491922]
[1727976392341,0.164506,60788.0,60787.0,0.2491922]
[1727976392583,0.52261442,60798.0,60787.0,0.2491922]
[1727976392584,0.164502,60790.0,60787.0,0.2491922]
[1727976392826,0.328997,60791.0,60785.0,0.164513]
[1727976393060,0.2491922,60797.0,60785.0,0.16318671]
[1727976393302,0.164511,60786.0,60785.0,0.16318671]
[1727976393514,0.164503,60789.0,60788.0,0.001]
[1727976393935,0.164503,60789.0,60788.0,0.002]
[1727976394643,0.164503,60789.0,60788.0,0.001]
[1727976395331,0.164503,60789.0,60772.0,0.2491922]
[1727976395332,0.164522,60782.0,60772.0,0.2491922]
[1727976395550,0.79178571,60782.0,60772.0,0.2491922]
[1727976396257,0.60826042,60773.0,60772.0,0.2491922]
[1727976396486,0.79222796,60773.0,60772.0,0.2491922]
[1727976396740,0.164565,60766.0,60765.0,0.2491922]
[1727976396972,0.60827942,60766.0,60765.0,0.2491922]
[1727976397185,0.44371442,60771.0,60754.0,0.2491922]
[1727976397406,0.44371442,60771.0,60754.0,0.4137892]
[1727976397407,0.329171,60759.0,60754.0,0.4137892]
[1727976397632,0.164591,60757.0,60754.0,0.2491922]
[1727976397846,0.329122,60768.0,60754.0,0.2491922]
[1727976398119,0.2491922,60774.0,60755.0,0.2491922]
[1727976398120,0.329143,60764.0,60755.0,0.2491922]
[1727976398338,0.329143,60764.0,60756.0,0.164592]
[1727976398339,0.329156,60762.0,60756.0,0.164592]
[1727976398559,0.329143,60764.0,60758.0,0.164585]
[1727976398560,0.164574,60763.0,60758.0,0.164585]
[1727976398783,0.329128,60767.0,60755.0,0.2491922]
[1727976398784,0.329128,60767.0,60757.0,0.16318671]
[1727976398995,0.176565,60766.0,60765.0,0.001]
[1727976399445,0.408995,60773.0,60758.0,0.32917]
[1727976399446,0.44371442,60772.0,60758.0,0.32917]
[1727976399674,0.0926,60784.0,60757.0,0.16318671]
[1727976399675,0.12257011,60815.0,60805.0,0.528]
[1727976399898,0.18154795,60831.0,60805.0,0.16446]
[1727976399899,0.0794,60820.0,60805.0,0.16446]
[1727976400120,0.0794,60820.0,60790.0,0.28089479]
[1727976400121,0.16444,60813.0,60796.0,0.002]
[1727976400341,0.16444,60813.0,60803.0,0.164465]
[1727976400342,0.16239806,60813.0,60803.0,0.164465]
[1727976400560,0.16524,60819.0,60799.0,0.32895]
[1727976400561,0.165239,60819.0,60799.0,0.32895]
[1727976400772,0.165239,60819.0,60796.0,0.002]
[1727976400773,0.000816,60819.0,60796.0,0.002]
[1727976400997,0.000816,60819.0,60805.0,0.16446]
[1727976401908,0.000816,60819.0,60805.0,0.16646]
[1727976402134,0.009817,60806.0,60805.0,0.27146]
[1727976402640,0.000817,60806.0,60805.0,0.27146]
[1727976402885,0.000817,60806.0,60805.0,0.27546]
[1727976403118,0.000817,60806.0,60805.0,0.17546]
[1727976403355,0.001817,60806.0,60805.0,0.18446]
[1727976404022,0.001817,60806.0,60805.0,0.17546]
[1727976404917,0.000817,60806.0,60805.0,0.16646]
[1727976405137,0.001817,60806.0,60805.0,0.17746]
[1727976405567,0.000817,60806.0,60805.0,0.17946]
[1727976405814,0.001817,60806.0,60805.0,0.17746]
[1727976406233,0.000817,60806.0,60805.0,0.16646]
[1727976406698,0.001817,60806.0,60805.0,0.17746]
[1727976407179,0.001817,60806.0,60805.0,0.34064671]
[1727976407396,0.001817,60806.0,60805.0,0.35464671]
[1727976407623,0.001817,60806.0,60805.0,0.34064671]
[1727976408112,0.000817,60806.0,60805.0,0.34264671]
[1727976408373,0.001817,60806.0,60805.0,0.35464671]
[1727976408862,0.000817,60806.0,60805.0,0.34264671]
[1727976409350,0.001817,60806.0,60805.0,0.34064671]
[1727976409813,0.000817,60806.0,60805.0,0.32964671]
[1727976410786,0.000817,60806.0,60805.0,0.34364671]
[1727976411021,0.001817,60806.0,60805.0,0.34164671]
[1727976411288,0.001817,60806.0,60805.0,0.48364671]
[1727976411516,0.000817,60806.0,60805.0,0.47164671]
[1727976411785,0.24668821,60814.0,60813.0,0.171438]
[1727976412011,0.24668821,60814.0,60813.0,0.90100996]
[1727976412476,0.24668821,60814.0,60813.0,0.87300996]
[1727976412698,0.24668821,60814.0,60813.0,0.32962471]
[1727976412956,0.000816,60819.0,60810.0,0.002]
[1727976413173,0.000816,60819.0,60810.0,0.16518671]
[1727976413437,0.000816,60819.0,60811.0,0.164443]
[1727976413649,0.000816,60819.0,60810.0,0.32963071]
[1727976414073,0.000816,60819.0,60813.0,0.016]
[1727976414287,0.000816,60819.0,60813.0,0.013]
[1727976414288,0.001,60814.0,60813.0,0.013]
[1727976414716,0.000816,60819.0,60813.0,0.002]
[1727976415144,0.000816,60819.0,60812.0,0.002]
[1727976415583,0.000816,60819.0,60813.0,0.004]
[1727976416017,0.000816,60819.0,60813.0,0.009]
[1727976416018,0.05844862,60819.0,60813.0,0.009]
[1727976416231,0.164431,60816.0,60813.0,0.009]
[1727976416443,0.164435,60814.0,60813.0,0.009]
[1727976416877,0.0763,60814.0,60813.0,0.005]
[1727976417061,0.240735,60814.0,60813.0,0.005]
[1727976417349,0.240735,60814.0,60799.0,0.001636]
[1727976417350,0.328879,60813.0,60803.0,0.002]
[1727976417561,0.240736,60814.0,60804.0,0.16318671]
[1727976417778,0.164441,60812.0,60804.0,0.16318671]
[1727976417991,0.0763,60814.0,60804.0,0.16318671]
[1727976418205,0.24668821,60813.0,60804.0,0.16318671]
[1727976418417,0.24668821,60813.0,60803.0,0.002]
[1727976418418,0.164442,60812.0,60803.0,0.002]
[1727976418858,0.164442,60812.0,60799.0,0.330583]
[1727976418859,0.164451,60809.0,60804.0,0.005]
[1727976419091,0.24668821,60813.0,60804.0,0.01]
[1727976419528,0.328903,60809.0,60804.0,0.01]
[1727976419737,0.164452,60808.0,60804.0,0.01]
[1727976419988,0.164455,60807.0,60804.0,0.01]
[1727976420220,0.41114821,60805.0,60804.0,0.005]
[1727976420438,0.33820346,60805.0,60804.0,0.006]
[1727976420663,0.0783,60805.0,60799.0,0.001636]
[1727976420880,0.0783,60805.0,60803.0,0.007]
[1727976421097,0.0783,60805.0,60804.0,0.002]
[1727976421539,0.0783,60805.0,60804.0,0.003]
[1727976421759,0.0893,60805.0,60804.0,0.004]
[1727976422098,0.0893,60805.0,60804.0,0.003]
[1727976422312,0.328868,60815.0,60806.0,0.002]
[1727976422313,0.24668821,60812.0,60806.0,0.002]
[1727976422794,0.24668821,60812.0,60811.0,0.002]
[1727976423010,0.24668821,60812.0,60810.0,0.002]
[1727976423221,0.164437,60814.0,60810.0,0.002]
[1727976423453,0.24668821,60813.0,60804.0,0.005]
[1727976423681,0.0778,60815.0,60805.0,0.002]
[1727976423682,0.164457,60807.0,60805.0,0.002]
[1727976423931,0.003,60812.0,60806.0,0.40987492]
[1727976424165,0.0778,60815.0,60810.0,0.164446]
[1727976424401,0.0778,60815.0,60810.0,0.16318671]
[1727976424618,0.006,60814.0,60813.0,0.002]
[1727976426247,0.006,60814.0,60810.0,0.16518671]
[1727976426248,0.008,60814.0,60810.0,0.16518671]
[1727976426491,0.008,60814.0,60810.0,0.002]
[1727976426492,0.328877,60813.0,60810.0,0.002]
[1727976426751,0.002,60814.0,60809.0,0.002]
[1727976426974,0.164439,60813.0,60809.0,0.002]
[1727976427226,0.007,60814.0,60809.0,0.002]
[1727976427227,0.005,60814.0,60809.0,0.002]
[1727976427446,0.008,60814.0,60809.0,0.002]
[1727976427682,0.164437,60814.0,60809.0,0.002]
[1727976427932,0.242233,60815.0,60814.0,0.002]
[1727976428166,0.164438,60813.0,60810.0,0.002]
[1727976428411,0.164441,60812.0,60810.0,0.002]
[1727976428689,0.0778,60815.0,60810.0,0.002]
[1727976428690,0.001,60813.0,60811.0,0.16318671]
[1727976428951,0.000816,60819.0,60818.0,0.164425]
[1727976429182,0.000816,60819.0,60818.0,0.32761171]
[1727976429433,0.000816,60819.0,60818.0,0.32961171]
[1727976430132,0.000816,60819.0,60818.0,0.002]
[1727976430407,0.000816,60819.0,60818.0,0.005]
[1727976430907,0.000816,60819.0,60817.0,0.002]
[1727976431142,0.000816,60819.0,60818.0,0.002]
[1727976431413,0.000816,60819.0,60817.0,0.16518671]
[1727976432168,0.000816,60819.0,60818.0,0.33061171]
[1727976433137,0.000816,60819.0,60818.0,0.32961171]
[1727976433374,0.000816,60819.0,60818.0,0.33061171]
[1727976433639,0.000816,60819.0,60818.0,0.32961171]
[1727976433879,0.000816,60819.0,60818.0,0.33861171]
[1727976435123,0.245538,60819.0,60818.0,0.009]
[1727976435422,0.245538,60819.0,60818.0,0.019]
[1727976435423,0.246538,60819.0,60818.0,0.019]
[1727976435895,0.082116,60819.0,60818.0,0.18218671]
[1727976436384,0.164428,60817.0,60813.0,0.164437]
[1727976436687,0.164428,60817.0,60814.0,0.002]
[1727976436925,0.164425,60818.0,60814.0,0.166433]
[1727976437170,0.081116,60819.0,60817.0,0.164425]
[1727976437426,0.081116,60819.0,60818.0,0.164425]
[1727976437652,0.081116,60819.0,60818.0,0.166425]
[1727976438124,0.081116,60819.0,60818.0,0.164425]
[1727976438347,0.081116,60819.0,60817.0,0.16718671]
[1727976438564,0.081116,60819.0,60817.0,0.16518671]
[1727976439023,0.081116,60819.0,60812.0,0.002]
[1727976439024,0.328852,60818.0,60812.0,0.002]
[1727976439247,0.245538,60819.0,60818.0,0.002]
[1727976439528,0.49222621,60819.0,60818.0,0.002]
[1727976439755,0.52653605,60819.0,60818.0,0.002]
[1727976439994,0.245538,60819.0,60818.0,0.002]
[1727976440481,0.245538,60819.0,60818.0,0.001]
[1727976440747,0.245538,60819.0,60817.0,0.002]
[1727976440748,0.081116,60819.0,60817.0,0.002]
[1727976441006,0.164425,60818.0,60817.0,0.002]
[1727976441303,0.164425,60818.0,60804.0,0.003636]
[1727976441304,0.164436,60814.0,60809.0,0.164447]
[1727976441494,0.087116,60819.0,60804.0,0.003636]
[1727976441495,0.081116,60819.0,60804.0,0.003636]
[1727976441745,0.164447,60810.0,60808.0,0.002]
[1727976442004,0.32887,60815.0,60809.0,0.16318671]
[1727976442255,0.328854,60818.0,60813.0,0.002]
[1727976442516,0.41112121,60815.0,60813.0,0.002]
[1727976442767,0.164433,60815.0,60813.0,0.002]
[1727976443030,0.328855,60817.0,60810.0,0.002]
[1727976443031,0.164438,60813.0,60810.0,0.002]
[1727976443277,0.164438,60813.0,60811.0,0.16318671]
[1727976443524,0.328863,60816.0,60811.0,0.16318671]
[1727976443762,0.164441,60812.0,60811.0,0.16318671]
[1727976444005,0.164438,60813.0,60811.0,0.16318671]
[1727976444251,0.328868,60815.0,60811.0,0.16318671]
[1727976444503,0.164441,60812.0,60811.0,0.16318671]
[1727976444778,0.081116,60819.0,60811.0,0.16318671]
[1727976444779,0.001,60816.0,60811.0,0.16318671]
[1727976445041,0.001,60816.0,60804.0,0.001636]
[1727976445042,0.001,60816.0,60815.0,0.166431]
[1727976445823,0.001,60816.0,60815.0,0.32961771]
[1727976446359,0.000816,60819.0,60818.0,0.166425]
[1727976446609,0.000816,60819.0,60818.0,0.32961171]
[1727976447787,0.000816,60819.0,60818.0,0.33561171]
[1727976448321,0.000816,60819.0,60818.0,0.32961171]
[1727976448596,0.001816,60819.0,60818.0,0.56340283]
[1727976448875,0.001816,60819.0,60818.0,0.58760061]
[1727976449344,0.000816,60819.0,60818.0,0.57860061]
[1727976449618,0.000816,60819.0,60818.0,0.46561171]
[1727976449845,0.000816,60819.0,60818.0,0.51595708]
[1727976450129,0.000816,60819.0,60818.0,0.52995708]
[1727976450419,0.000816,60819.0,60818.0,0.49688708]
[1727976450887,0.000816,60819.0,60818.0,0.45261171]
[1727976451121,0.001816,60819.0,60818.0,0.47861171]
[1727976451400,0.001816,60819.0,60818.0,0.44661171]
[1727976451653,0.000816,60819.0,60818.0,0.45761171]
[1727976451891,0.001816,60819.0,60818.0,0.59041513]
[1727976452402,0.000816,60819.0,60818.0,0.45761171]
[1727976452688,0.000816,60819.0,60818.0,0.55421526]
[1727976452966,0.000816,60819.0,60818.0,0.56821526]
[1727976453172,0.26276651,60831.0,60830.0,0.44739005]
[1727976453410,0.26276651,60831.0,60830.0,0.61057676]
[1727976453886,0.0160783,60831.0,60830.0,0.61057676]
[1727976454390,0.0160783,60831.0,60830.0,0.61857676]
[1727976454652,0.0160783,60831.0,60830.0,0.33757871]
[1727976455196,0.0170783,60831.0,60830.0,0.34657871]
[1727976455497,0.0170783,60831.0,60830.0,0.62757676]
[1727976455955,0.0170783,60831.0,60830.0,0.61957676]
[1727976456409,0.0170783,60831.0,60830.0,0.62457676]
[1727976456841,0.0170783,60831.0,60830.0,0.34357871]
[1727976457079,0.0170783,60831.0,60830.0,0.33857871]
[1727976457327,0.0170783,60831.0,60830.0,0.34657871]
[1727976460850,0.0170783,60831.0,60828.0,0.00530025]
[1727976460851,0.0825,60812.0,60811.0,0.04825762]
[1727976461084,0.36349805,60812.0,60810.0,0.24668821]
[1727976461364,0.36349805,60812.0,60804.0,0.001636]
[1727976461365,0.0825,60812.0,60811.0,0.57631792]
[1727976461650,0.0822,60822.0,60818.0,0.002]
[1727976461933,0.24668821,60819.0,60818.0,0.002]
[1727976462134,0.0822,60822.0,60817.0,0.002]
[1727976462135,0.246615,60822.0,60817.0,0.002]
[1727976462400,0.0822,60822.0,60817.0,0.002]
[1727976462891,0.0822,60822.0,60811.0,0.001]
[1727976462892,0.0822,60822.0,60820.0,0.002]
[1727976463152,0.0822,60822.0,60818.0,0.32760871]
[1727976463153,0.0952,60822.0,60818.0,0.001]
[1727976463407,0.0952,60822.0,60813.0,0.002]
[1727976463408,0.164418,60821.0,60813.0,0.002]
[1727976463840,0.0892,60822.0,60813.0,0.002]
[1727976464114,0.0892,60822.0,60817.0,0.164426]
[1727976464115,0.007,60822.0,60817.0,0.164426]
[1727976464359,0.017,60822.0,60821.0,0.002]
[1727976464601,0.023,60822.0,60821.0,0.16518671]
[1727976465539,0.006,60822.0,60821.0,0.16518671]
[1727976465807,0.32638821,60827.0,60817.0,0.002]
[1727976465808,0.003,60821.0,60817.0,0.002]
[1727976466032,0.003,60821.0,60819.0,0.002]
[1727976466246,0.164422,60819.0,60817.0,0.16518671]
[1727976466484,0.328839,60820.0,60817.0,0.16518671]
[1727976466749,0.164421,60820.0,60817.0,0.16518671]
[1727976466993,0.164435,60814.0,60813.0,0.002]
[1727976467208,0.164435,60814.0,60813.0,0.16318671]
[1727976467209,0.164437,60814.0,60813.0,0.16318671]
[1727976467665,0.328882,60812.0,60807.0,0.002]
[1727976467877,0.0831,60808.0,60807.0,0.002]
[1727976468099,0.0831,60808.0,60807.0,0.166454]
[1727976468351,0.0831,60808.0,60807.0,0.002]
[1727976469274,0.0831,60808.0,60807.0,0.16618671]
[1727976469477,0.247552,60808.0,60807.0,0.16418671]
[1727976470092,0.0831,60808.0,60807.0,0.16618671]
[1727976470297,0.247552,60808.0,60807.0,0.001]
[1727976470504,0.247552,60808.0,60807.0,0.003]
[1727976470716,0.0831,60808.0,60807.0,0.003]
[1727976471012,0.0831,60808.0,60807.0,0.16818671]
[1727976471238,0.28099805,60824.0,60812.0,0.002]
[1727976471239,0.0831,60815.0,60812.0,0.002]
[1727976471504,0.247534,60815.0,60814.0,0.002]
[1727976471762,0.0831,60815.0,60814.0,0.16518671]
[1727976472679,0.0891,60815.0,60814.0,0.16618671]
[1727976472909,0.0831,60815.0,60814.0,0.16518671]
[1727976473160,0.247533,60815.0,60814.0,0.16518671]
[1727976473460,0.247533,60815.0,60814.0,0.16818671]
[1727976473686,0.0831,60815.0,60814.0,0.16818671]
[1727976473945,0.0831,60815.0,60814.0,0.16618671]
[1727976474409,0.0831,60815.0,60814.0,0.33062171]
[1727976474644,0.0831,60815.0,60814.0,0.33262171]
[1727976474899,0.0783,60825.0,60823.0,0.16441]
[1727976475135,0.0783,60825.0,60824.0,0.002]
[1727976475370,0.0783,60825.0,60823.0,0.16441]
[1727976475588,0.0783,60825.0,60820.0,0.002]
[1727976475825,0.242707,60825.0,60821.0,0.16318671]
[1727976476056,0.0783,60825.0,60821.0,0.16318671]
[1727976476312,0.242707,60825.0,60821.0,0.32760271]
[1727976476558,0.415115,60825.0,60821.0,0.16318671]
[1727976476804,0.164414,60822.0,60821.0,0.16318671]
[1727976477056,0.415115,60825.0,60820.0,0.001]
[1727976477057,0.164416,60821.0,60820.0,0.001]
[1727976478079,0.0903,60825.0,60820.0,0.16418671]
[1727976478325,0.0903,60825.0,60824.0,0.002]
[1727976478326,0.0823,60825.0,60824.0,0.002]
[1727976478564,0.0853,60825.0,60824.0,0.002]
[1727976478793,0.0813,60825.0,60824.0,0.002]
[1727976479006,0.0783,60825.0,60824.0,0.002]
[1727976479212,0.0783,60825.0,60824.0,0.166408]
[1727976479431,0.0813,60825.0,60824.0,0.002]
[1727976479681,0.0853,60825.0,60824.0,0.002]
[1727976479907,0.246706,60825.0,60824.0,0.002]
[1727976480114,0.0853,60825.0,60824.0,0.002]
[1727976480555,0.0853,60825.0,60824.0,0.166408]
[1727976480768,0.0853,60825.0,60824.0,0.002]
[1727976480983,0.0853,60825.0,60824.0,0.166408]
[1727976481270,0.0853,60825.0,60824.0,0.32959471]
[1727976481492,0.0853,60825.0,60822.0,0.330828]
[1727976481718,0.0853,60825.0,60817.0,0.002]
[1727976481934,0.164425,60818.0,60814.0,0.32762071]
[1727976482177,0.328847,60819.0,60814.0,0.16318671]
[1727976482412,0.164423,60819.0,60815.0,0.164432]
[1727976482632,0.32884,60820.0,60814.0,0.16318671]
[1727976482848,0.164426,60818.0,60814.0,0.32762171]
[1727976483061,0.164423,60819.0,60817.0,0.002]
[1727976483273,0.164425,60818.0,60817.0,0.002]
[1727976483756,0.164427,60817.0,60814.0,0.32762171]
[1727976483971,0.164426,60818.0,60814.0,0.32762171]
[1727976484408,0.164435,60814.0,60813.0,0.001636]
[1727976484624,0.34505568,60814.0,60813.0,0.001636]
[1727976485059,0.246535,60814.0,60813.0,0.001636]
[1727976485504,0.0821,60814.0,60813.0,0.001636]
[1727976485714,0.0971,60814.0,60813.0,0.167074]
[1727976485925,0.0971,60814.0,60813.0,0.003636]
[1727976485926,0.0891,60814.0,60813.0,0.003636]
[1727976486152,0.0891,60814.0,60813.0,0.168074]
[1727976486153,0.0821,60814.0,60813.0,0.168074]
[1727976486382,0.0911,60814.0,60813.0,0.004636]
[1727976486570,0.263535,60814.0,60813.0,0.001636]
[1727976486826,0.271535,60814.0,60813.0,0.002636]
[1727976487780,0.38426116,60814.0,60813.0,0.002636]
[1727976487987,0.48278184,60814.0,60813.0,0.002636]
[1727976488197,0.46578184,60814.0,60813.0,0.001636]
[1727976488419,0.47278184,60814.0,60813.0,0.001636]
[1727976488840,0.47678184,60814.0,60813.0,0.001636]
[1727976489050,0.52435503,60814.0,60813.0,0.001636]
[1727976489268,0.24366,60805.0,60804.0,0.001636]
[1727976489495,0.62439569,60805.0,60804.0,0.001636]
[1727976489709,0.71479569,60805.0,60804.0,0.001636]
[1727976490174,0.05032616,60814.0,60813.0,0.164438]
[1727976490175,0.021,60814.0,60813.0,0.164438]
[1727976490394,0.0812,60827.0,60808.0,0.28099805]
[1727976490395,0.24668821,60819.0,60808.0,0.28099805]
[1727976490608,0.24668821,60819.0,60805.0,0.0963]
[1727976490609,0.24668821,60819.0,60818.0,0.166425]
[1727976490819,0.24668821,60819.0,60818.0,0.164425]
[1727976491032,0.0812,60827.0,60818.0,0.16518671]
[1727976491252,0.0812,60827.0,60808.0,0.28599805]
[1727976491253,0.0812,60827.0,60824.0,0.002]
[1727976491469,0.0812,60827.0,60821.0,0.002]
[1727976491678,0.0812,60827.0,60822.0,0.16318671]
[1727976491888,0.245602,60827.0,60822.0,0.16318671]
[1727976492097,0.0812,60827.0,60822.0,0.16318671]
[1727976492543,0.0812,60827.0,60814.0,0.002]
[1727976492758,0.0882,60827.0,60821.0,0.001]
[1727976492975,0.0882,60827.0,60822.0,0.16318671]
[1727976493184,0.000818,60830.0,60822.0,0.16318671]
[1727976493398,0.000818,60830.0,60827.0,0.164399]
[1727976493610,0.000818,60830.0,60822.0,0.16418671]
[1727976493611,0.24668821,60828.0,60826.0,0.164401]
[1727976493837,0.000818,60830.0,60827.0,0.164399]
[1727976494112,0.000818,60830.0,60826.0,0.32758871]
[1727976494328,0.000818,60830.0,60826.0,0.16318671]
[1727976494510,0.000818,60830.0,60829.0,0.164395]
[1727976494771,0.009818,60830.0,60826.0,0.16318671]
[1727976494981,0.009818,60830.0,60826.0,0.32758771]
[1727976495196,0.000818,60830.0,60826.0,0.32758771]
[1727976495416,0.009818,60830.0,60829.0,0.164395]
[1727976495627,0.009818,60830.0,60829.0,0.32758171]
[1727976495839,0.009818,60830.0,60829.0,0.16318671]
[1727976496042,0.009818,60830.0,60823.0,0.328821]
[1727976496271,0.020818,60830.0,60826.0,0.001]
[1727976496503,0.009818,60830.0,60826.0,0.16318671]
[1727976496728,0.009818,60830.0,60826.0,0.32758871]
[1727976496949,0.011818,60830.0,60829.0,0.001]
[1727976497144,0.020818,60830.0,60829.0,0.001]
[1727976497647,0.011818,60830.0,60829.0,0.001]
[1727976497898,0.020818,60830.0,60829.0,0.001]
[1727976498120,0.020818,60830.0,60828.0,0.166397]
[1727976498355,0.000818,60830.0,60828.0,0.166397]
[1727976498596,0.011818,60830.0,60828.0,0.166397]
[1727976498852,0.020818,60830.0,60829.0,0.164395]
[1727976499090,0.031818,60830.0,60829.0,0.001]
[1727976499335,0.020818,60830.0,60827.0,0.164398]
[1727976499569,0.020818,60830.0,60828.0,0.001]
[1727976500073,0.009818,60830.0,60827.0,0.164398]
[1727976500308,0.011818,60830.0,60829.0,0.001]
[1727976500546,0.17621,60830.0,60829.0,0.001]
[1727976501026,0.18521,60830.0,60829.0,0.001]
[1727976501266,0.31164933,60830.0,60829.0,0.001]
[1727976501504,0.164424,60819.0,60814.0,0.328869]
[1727976501789,0.68892723,60829.0,60828.0,0.001]
[1727976502041,0.68892723,60829.0,60811.0,0.40987492]
[1727976502042,0.24668821,60826.0,60811.0,0.40987492]
[1727976502273,0.0809,60821.0,60811.0,0.40987492]
[1727976502534,0.0809,60821.0,60810.0,0.166446]
[1727976502535,0.164436,60814.0,60810.0,0.002]
[1727976502834,0.0809,60821.0,60810.0,0.32963171]
[1727976502835,0.328858,60817.0,60810.0,0.32963171]
[1727976503090,0.164435,60815.0,60810.0,0.32963171]
[1727976503303,0.328866,60815.0,60810.0,0.32963271]
[1727976503547,0.164437,60814.0,60810.0,0.32963271]
[1727976503771,0.164437,60814.0,60811.0,0.164443]
[1727976504004,0.164436,60814.0,60810.0,0.32963271]
[1727976504245,0.164444,60811.0,60808.0,0.001636]
[1727976504504,0.164442,60812.0,60811.0,0.001]
[1727976505057,0.328876,60814.0,60808.0,0.001636]
[1727976505058,0.164449,60809.0,60808.0,0.001636]
[1727976505288,0.242849,60809.0,60808.0,0.001636]
[1727976506540,0.242849,60809.0,60804.0,0.001636]
[1727976506541,0.16446,60805.0,60804.0,0.001636]
[1727976506774,0.40633808,60805.0,60804.0,0.001636]
[1727976507232,0.48856629,60805.0,60788.0,0.002]
[1727976507469,0.48856629,60805.0,60792.0,0.24668821]
[1727976507470,0.164473,60800.0,60792.0,0.24668821]
[1727976507708,0.164473,60800.0,60793.0,0.002]
[1727976507935,0.163035,60800.0,60793.0,0.002]
[1727976508164,0.163035,60800.0,60795.0,0.002]
[1727976508409,0.163035,60800.0,60799.0,0.002636]
[1727976508840,0.163035,60800.0,60799.0,0.001636]
[1727976509062,0.174035,60800.0,60799.0,0.002636]
[1727976510452,0.014,60805.0,60801.0,0.123]
[1727976510694,0.014,60805.0,60804.0,0.73864676]
[1727976510925,0.24668821,60816.0,60815.0,0.164433]
[1727976511139,0.24668821,60816.0,60815.0,0.60861776]
[1727976511578,0.24668821,60823.0,60822.0,0.166414]
[1727976511797,0.24668821,60823.0,60822.0,0.32960071]
[1727976512229,0.24750621,60830.0,60822.0,0.32960071]
[1727976512460,0.24750621,60830.0,60825.0,0.002]
[1727976512690,0.24750621,60830.0,60825.0,0.16318671]
[1727976513134,0.000818,60830.0,60825.0,0.16318671]
[1727976513621,0.002818,60830.0,60825.0,0.16318671]
[1727976514056,0.000818,60830.0,60825.0,0.16318671]
[1727976514300,0.004818,60830.0,60825.0,0.16518671]
[1727976514756,0.004818,60830.0,60820.0,0.166418]
[1727976514972,0.004818,60830.0,60825.0,0.001]
[1727976515196,0.004818,60830.0,60820.0,0.16518671]
[1727976515416,0.41590021,60830.0,60820.0,0.16518671]
[1727976515632,0.164398,60828.0,60820.0,0.16318671]
[1727976515857,0.57629221,60830.0,60820.0,0.16318671]
[1727976516076,0.41389821,60830.0,60820.0,0.32760571]
[1727976516307,0.41389821,60830.0,60805.0,0.61491605]
[1727976516308,0.24668821,60823.0,60810.0,0.002]
[1727976516535,0.328833,60821.0,60810.0,0.16318671]
[1727976516755,0.328834,60821.0,60810.0,0.16318671]
[1727976516977,0.328834,60821.0,60810.0,0.16518671]
[1727976517243,0.0775,60822.0,60804.0,0.32892]
[1727976517244,0.59641946,60820.0,60804.0,0.002]
[1727976517487,0.59641946,60820.0,60806.0,0.164456]
[1727976517488,0.164433,60815.0,60806.0,0.164456]
[1727976517727,0.328861,60816.0,60810.0,0.001]
[1727976517962,0.328861,60816.0,60801.0,0.002]
[1727976517963,0.24668821,60813.0,60801.0,0.002]
[1727976518199,0.164465,60804.0,60796.0,0.164483]
[1727976518416,0.164465,60804.0,60798.0,0.164477]
[1727976518417,0.0764,60804.0,60798.0,0.164477]
[1727976518637,0.0764,60804.0,60796.0,0.328963]
[1727976518859,0.240865,60804.0,60796.0,0.328963]
[1727976519076,0.0764,60804.0,60791.0,0.330995]
[1727976519293,0.0764,60804.0,60798.0,0.164477]
[1727976519806,0.0764,60804.0,60796.0,0.328968]
[1727976519987,0.0764,60804.0,60800.0,0.164472]
[1727976520211,0.0764,60804.0,60794.0,0.002]
[1727976520431,0.0764,60804.0,60795.0,0.32897]
[1727976520655,0.0764,60804.0,60800.0,0.164473]
[1727976520874,0.0764,60804.0,60800.0,0.328944]
[1727976520875,0.0774,60804.0,60800.0,0.328944]
[1727976521106,0.0774,60804.0,60798.0,0.328957]